[Event "*** Titled Tuesday Blitz"]
[Site "Chess.com"]
[Date "2020.03.03"]
[Round "2"]
[White "EugeneRougon"]
[Black "NMZanette"]
[Result "1-0"]
[WhiteElo "2693"]
[BlackElo "2264"]
[TimeControl "180+1"]
[EndTime "13:17:56 PST"]
[Termination "EugeneRougon won by resignation"]

1. e4 {[%clk 0:03:00.9]} 1... e5 {[%clk 0:02:58.9]} 2. Nf3 {[%clk 0:03:00.7]}
2... Nc6 {[%clk 0:02:59.1]} 3. Bb5 {[%clk 0:03:00.9]} 3... a6 {[%clk 0:02:59.2]}
4. Ba4 {[%clk 0:03:01.4]} 4... Nf6 {[%clk 0:02:58.7]} 5. O-O {[%clk 0:03:01.7]}
5... Nxe4 {[%clk 0:02:57.5]} 6. d4 {[%clk 0:02:57.6]} 6... b5 {[%clk 0:02:56.3]}
7. Bb3 {[%clk 0:02:58]} 7... d5 {[%clk 0:02:56.8]} 8. dxe5 {[%clk 0:02:53.9]}
8... Be6 {[%clk 0:02:56.9]} 9. c3 {[%clk 0:02:49.3]} 9... Bc5 {[%clk 0:02:56.1]}
10. Nbd2 {[%clk 0:02:45.1]} 10... O-O {[%clk 0:02:51.6]} 11. Bc2 {[%clk
0:02:42.6]} 11... f5 {[%clk 0:02:48.2]} 12. Nb3 {[%clk 0:02:37.8]} 12... Bb6
{[%clk 0:02:39.1]} 13. Nfd4 {[%clk 0:02:25.6]} 13... Nxd4 {[%clk 0:02:38.1]} 14.
cxd4 {[%clk 0:02:25.8]} 14... c5 {[%clk 0:02:29]} 15. Bxe4 {[%clk 0:02:11]}
15... c4 {[%clk 0:02:27.9]} 16. Bc2 {[%clk 0:02:05.8]} 16... cxb3 {[%clk
0:02:26.7]} 17. Bxb3 {[%clk 0:02:06.4]} 17... Qh4 {[%clk 0:02:23]} 18. Be3
{[%clk 0:01:53.9]} 18... f4 {[%clk 0:02:22.5]} 19. g3 {[%clk 0:01:53.9]} 19...
Qh3 {[%clk 0:02:18]} 20. Bxf4 {[%clk 0:01:48.6]} 20... Rxf4 {[%clk 0:02:17.5]}
21. gxf4 {[%clk 0:01:45.9]} 21... Rf8 {[%clk 0:02:08]} 22. Rc1 {[%clk
0:01:38.9]} 22... Rxf4 {[%clk 0:02:05.2]} 23. Rc3 {[%clk 0:01:38.7]} 23... Qh4
{[%clk 0:01:37.4]} 24. Rg3 {[%clk 0:01:36.8]} 24... Bxd4 {[%clk 0:01:32.6]} 25.
Qc2 {[%clk 0:01:22.3]} 25... Bxe5 {[%clk 0:01:17.2]} 26. Qc6 {[%clk 0:01:14.2]}
26... Rf6 {[%clk 0:01:13]} 27. Qe8+ {[%clk 0:01:10.2]} 1-0

[Event "*** Titled Tuesday Blitz"]
[Site "Chess.com"]
[Date "2020.03.03"]
[Round "2"]
[White "Msb2"]
[Black "popov_m"]
[Result "1-0"]
[WhiteElo "2868"]
[BlackElo "2608"]
[TimeControl "180+1"]
[EndTime "13:17:58 PST"]
[Termination "Msb2 won by checkmate"]

1. d4 {[%clk 0:03:00.9]} 1... Nf6 {[%clk 0:02:55.5]} 2. Nf3 {[%clk 0:03:00.2]}
2... g6 {[%clk 0:02:38.9]} 3. c4 {[%clk 0:02:58.3]} 3... Bg7 {[%clk 0:02:36.8]}
4. Nc3 {[%clk 0:02:58.8]} 4... d6 {[%clk 0:02:35.9]} 5. e4 {[%clk 0:02:58.6]}
5... O-O {[%clk 0:02:35.7]} 6. Be2 {[%clk 0:02:59.2]} 6... Na6 {[%clk
0:02:28.5]} 7. O-O {[%clk 0:02:57]} 7... e5 {[%clk 0:02:28.1]} 8. Be3 {[%clk
0:02:57.7]} 8... c6 {[%clk 0:02:26.4]} 9. d5 {[%clk 0:02:55.9]} 9... Ng4 {[%clk
0:02:25.8]} 10. Bg5 {[%clk 0:02:54.7]} 10... f6 {[%clk 0:02:26.1]} 11. Bh4
{[%clk 0:02:55.4]} 11... c5 {[%clk 0:02:26.1]} 12. Ne1 {[%clk 0:02:55.9]} 12...
h5 {[%clk 0:02:25.4]} 13. a3 {[%clk 0:02:51.1]} 13... Nh6 {[%clk 0:02:19.7]} 14.
h3 {[%clk 0:02:50.9]} 14... Nc7 {[%clk 0:02:12.1]} 15. Nd3 {[%clk 0:02:47.3]}
15... Nf7 {[%clk 0:01:54.9]} 16. b4 {[%clk 0:02:46.6]} 16... b6 {[%clk
0:01:54.9]} 17. Rb1 {[%clk 0:02:47.2]} 17... Bh6 {[%clk 0:01:48.2]} 18. f4
{[%clk 0:02:45.6]} 18... exf4 {[%clk 0:01:43.3]} 19. Bxh5 {[%clk 0:02:46]} 19...
gxh5 {[%clk 0:01:39.6]} 20. Nxf4 {[%clk 0:02:46.5]} 20... Bxf4 {[%clk
0:01:30.6]} 21. Rxf4 {[%clk 0:02:45.6]} 21... Ng5 {[%clk 0:01:17.9]} 22. Qxh5
{[%clk 0:02:40.4]} 22... Kg7 {[%clk 0:01:14.8]} 23. Bxg5 {[%clk 0:02:19]} 23...
fxg5 {[%clk 0:01:13.6]} 24. Rxf8 {[%clk 0:02:19.9]} 24... Qxf8 {[%clk
0:01:08.8]} 25. Qxg5+ {[%clk 0:02:15.4]} 25... Kh7 {[%clk 0:01:07.4]} 26. Rf1
{[%clk 0:02:07.4]} 26... Qg7 {[%clk 0:01:06.2]} 27. Qh4+ {[%clk 0:02:07.4]}
27... Kg6 {[%clk 0:00:31.1]} 28. Rf3 {[%clk 0:01:59.7]} 28... Qd4+ {[%clk
0:00:19.3]} 29. Kh1 {[%clk 0:01:59.8]} 29... Bd7 {[%clk 0:00:13.2]} 30. Rg3+
{[%clk 0:02:00]} 30... Kf7 {[%clk 0:00:12.5]} 31. Qh7+ {[%clk 0:02:00.6]} 31...
Kf6 {[%clk 0:00:10.7]} 32. Qg7# {[%clk 0:02:00.5]} 1-0

[Event "*** Titled Tuesday Blitz"]
[Site "Chess.com"]
[Date "2020.03.03"]
[Round "2"]
[White "dlp300"]
[Black "MFBerna"]
[Result "1-0"]
[WhiteElo "2659"]
[BlackElo "2339"]
[TimeControl "180+1"]
[EndTime "13:18:06 PST"]
[Termination "dlp300 won by resignation"]

1. e4 {[%clk 0:02:52.1]} 1... c6 {[%clk 0:02:59.1]} 2. d4 {[%clk 0:02:50.8]}
2... d5 {[%clk 0:03:00]} 3. Nc3 {[%clk 0:02:51.1]} 3... dxe4 {[%clk 0:03:00]} 4.
Nxe4 {[%clk 0:02:52]} 4... Bf5 {[%clk 0:03:00.3]} 5. Ng3 {[%clk 0:02:52.1]} 5...
Bg6 {[%clk 0:03:00.2]} 6. Nf3 {[%clk 0:02:52.5]} 6... Nd7 {[%clk 0:02:59.9]} 7.
h4 {[%clk 0:02:52.6]} 7... h6 {[%clk 0:03:00.3]} 8. h5 {[%clk 0:02:52.9]} 8...
Bh7 {[%clk 0:03:00.8]} 9. Bd3 {[%clk 0:02:53.5]} 9... Bxd3 {[%clk 0:03:01.2]}
10. Qxd3 {[%clk 0:02:54.4]} 10... e6 {[%clk 0:03:01.7]} 11. Bf4 {[%clk
0:02:53.7]} 11... Qa5+ {[%clk 0:03:01]} 12. Bd2 {[%clk 0:02:53.7]} 12... Qc7
{[%clk 0:02:58.7]} 13. O-O-O {[%clk 0:02:45.2]} 13... Ngf6 {[%clk 0:02:57.8]}
14. Rhe1 {[%clk 0:02:40.3]} 14... O-O-O {[%clk 0:02:57.3]} 15. Kb1 {[%clk
0:02:38.2]} 15... Bd6 {[%clk 0:02:54.9]} 16. Ne4 {[%clk 0:02:35.5]} 16... Nxh5
{[%clk 0:02:51.3]} 17. g3 {[%clk 0:02:32.4]} 17... Nhf6 {[%clk 0:02:50.1]} 18.
Nxd6+ {[%clk 0:02:31.3]} 18... Qxd6 {[%clk 0:02:51]} 19. Bf4 {[%clk 0:02:31.2]}
19... Qd5 {[%clk 0:02:51]} 20. Qa3 {[%clk 0:02:30.7]} 20... a6 {[%clk
0:02:38.6]} 21. Ne5 {[%clk 0:02:27.7]} 21... Nxe5 {[%clk 0:02:35.7]} 22. Rxe5
{[%clk 0:02:28.6]} 22... Qd7 {[%clk 0:02:26.6]} 23. c4 {[%clk 0:02:26.6]} 23...
g5 {[%clk 0:02:23.7]} 24. Be3 {[%clk 0:02:25]} 24... Ng4 {[%clk 0:02:22.6]} 25.
Rc5 {[%clk 0:02:21.6]} 25... Nxe3 {[%clk 0:02:04]} 26. fxe3 {[%clk 0:02:18.9]}
26... Kb8 {[%clk 0:01:59.2]} 27. b4 {[%clk 0:02:05.9]} 27... Qd6 {[%clk
0:01:44.8]} 28. b5 {[%clk 0:01:57.5]} 28... cxb5 {[%clk 0:01:44.4]} 29. cxb5
{[%clk 0:01:57.5]} 29... axb5 {[%clk 0:01:43.3]} 30. Rdc1 {[%clk 0:01:53.2]}
30... Qa6 {[%clk 0:01:17.9]} 31. Qb2 {[%clk 0:01:48.8]} 31... Rc8 {[%clk
0:01:06.1]} 32. d5 {[%clk 0:01:47.1]} 32... exd5 {[%clk 0:01:00.9]} 33. Qe5+
{[%clk 0:01:45.7]} 33... Ka7 {[%clk 0:00:58.5]} 34. Rxc8 {[%clk 0:01:44.1]}
34... Rxc8 {[%clk 0:00:57.8]} 35. Rxc8 {[%clk 0:01:45]} 35... Qg6+ {[%clk
0:00:56.7]} 36. Kb2 {[%clk 0:01:40]} 1-0

[Event "*** Titled Tuesday Blitz"]
[Site "Chess.com"]
[Date "2020.03.03"]
[Round "2"]
[White "NM2019"]
[Black "Region_07"]
[Result "0-1"]
[WhiteElo "2020"]
[BlackElo "2400"]
[TimeControl "180+1"]
[EndTime "13:18:06 PST"]
[Termination "Region_07 won on time"]

1. e4 {[%clk 0:01:26.2]} 1... Nc6 {[%clk 0:02:58.7]} 2. f4 {[%clk 0:01:26]} 2...
e6 {[%clk 0:02:56.9]} 3. Nf3 {[%clk 0:01:25.6]} 3... d5 {[%clk 0:02:57.1]} 4. e5
{[%clk 0:01:24.6]} 4... Nge7 {[%clk 0:02:53.9]} 5. d4 {[%clk 0:01:25]} 5... Nf5
{[%clk 0:02:54]} 6. Bd3 {[%clk 0:01:25.5]} 6... Nfxd4 {[%clk 0:02:51.4]} 7. O-O
{[%clk 0:01:24.3]} 7... Bc5 {[%clk 0:02:47.4]} 8. Kh1 {[%clk 0:01:24.1]} 8...
Nf5 {[%clk 0:02:35.7]} 9. Bxf5 {[%clk 0:01:15.5]} 9... exf5 {[%clk 0:02:36.6]}
10. c4 {[%clk 0:01:14.5]} 10... dxc4 {[%clk 0:02:31.5]} 11. Qxd8+ {[%clk
0:01:13.4]} 11... Nxd8 {[%clk 0:02:29]} 12. Nc3 {[%clk 0:01:11.7]} 12... Be6
{[%clk 0:02:22.4]} 13. Na4 {[%clk 0:01:08.6]} 13... Bb4 {[%clk 0:02:14.7]} 14.
a3 {[%clk 0:01:06.9]} 14... Be7 {[%clk 0:02:14]} 15. Be3 {[%clk 0:01:05.3]}
15... Nc6 {[%clk 0:02:11.8]} 16. Rac1 {[%clk 0:01:03.7]} 16... O-O-O {[%clk
0:02:09.8]} 17. Nd2 {[%clk 0:00:54.5]} 17... Rd3 {[%clk 0:02:08.4]} 18. Rf3
{[%clk 0:00:36.7]} 18... b5 {[%clk 0:01:59.2]} 19. Nc3 {[%clk 0:00:26.7]} 19...
a6 {[%clk 0:01:57.1]} 20. Rg3 {[%clk 0:00:18.9]} 20... Rhd8 {[%clk 0:01:55.1]}
21. Nf1 {[%clk 0:00:16.1]} 21... g6 {[%clk 0:01:50.3]} 22. Bf2 {[%clk
0:00:05.1]} 22... Na5 {[%clk 0:01:46]} 0-1

[Event "*** Titled Tuesday Blitz"]
[Site "Chess.com"]
[Date "2020.03.03"]
[Round "2"]
[White "marcodobrikov"]
[Black "Dhaydon19"]
[Result "1-0"]
[WhiteElo "2568"]
[BlackElo "2738"]
[TimeControl "180+1"]
[EndTime "13:18:08 PST"]
[Termination "marcodobrikov won by checkmate"]

1. e4 {[%clk 0:03:00.9]} 1... c6 {[%clk 0:02:50]} 2. Nf3 {[%clk 0:03:01.5]} 2...
d5 {[%clk 0:02:50.5]} 3. Nc3 {[%clk 0:03:02.4]} 3... Bg4 {[%clk 0:02:50.1]} 4.
h3 {[%clk 0:03:02.3]} 4... Bxf3 {[%clk 0:02:49.9]} 5. Qxf3 {[%clk 0:03:02.7]}
5... e6 {[%clk 0:02:50.8]} 6. d3 {[%clk 0:03:02.4]} 6... Nf6 {[%clk 0:02:51.2]}
7. Bd2 {[%clk 0:03:02.4]} 7... Bd6 {[%clk 0:02:50.8]} 8. O-O-O {[%clk
0:02:59.9]} 8... Nbd7 {[%clk 0:02:49.5]} 9. g4 {[%clk 0:02:59.8]} 9... h6 {[%clk
0:02:47.7]} 10. Bg2 {[%clk 0:02:57.1]} 10... a6 {[%clk 0:02:45.9]} 11. Qe2
{[%clk 0:02:57.1]} 11... d4 {[%clk 0:02:39.7]} 12. Nb1 {[%clk 0:02:55.6]} 12...
Qc7 {[%clk 0:02:38.7]} 13. Rdf1 {[%clk 0:02:42.2]} 13... Bf4 {[%clk 0:02:37.7]}
14. Qf3 {[%clk 0:02:36.8]} 14... Bxd2+ {[%clk 0:02:30.6]} 15. Nxd2 {[%clk
0:02:37.7]} 15... O-O-O {[%clk 0:02:15.1]} 16. Kb1 {[%clk 0:02:35.8]} 16... g5
{[%clk 0:02:07.6]} 17. Re1 {[%clk 0:02:28.1]} 17... Rdf8 {[%clk 0:02:03.3]} 18.
e5 {[%clk 0:02:27.1]} 18... Nd5 {[%clk 0:02:03]} 19. Qe4 {[%clk 0:02:24.7]}
19... Nf4 {[%clk 0:02:01.7]} 20. Bf3 {[%clk 0:02:21.4]} 20... c5 {[%clk
0:01:56.5]} 21. Nc4 {[%clk 0:02:20.4]} 21... Nd5 {[%clk 0:01:41.1]} 22. h4
{[%clk 0:02:20]} 22... Kb8 {[%clk 0:01:36.1]} 23. Nd6 {[%clk 0:02:16.8]} 23...
f6 {[%clk 0:01:18.4]} 24. hxg5 {[%clk 0:01:57.3]} 24... hxg5 {[%clk 0:01:13.6]}
25. Rxh8 {[%clk 0:01:56.6]} 25... Rxh8 {[%clk 0:01:13.5]} 26. Nf7 {[%clk
0:01:48]} 26... Rf8 {[%clk 0:01:06.8]} 27. exf6 {[%clk 0:01:45.3]} 27... N7xf6
{[%clk 0:00:58.4]} 28. Qxe6 {[%clk 0:01:44.4]} 28... Qxf7 {[%clk 0:00:57.9]} 29.
Qe5+ {[%clk 0:01:39.3]} 29... Ka7 {[%clk 0:00:57.5]} 30. Qxg5 {[%clk 0:01:39.2]}
30... Nb4 {[%clk 0:00:55.7]} 31. Qxc5+ {[%clk 0:01:38.5]} 31... Kb8 {[%clk
0:00:53]} 32. Qxb4 {[%clk 0:01:38.1]} 32... Re8 {[%clk 0:00:36.3]} 33. Rxe8+
{[%clk 0:01:36.1]} 33... Nxe8 {[%clk 0:00:37.2]} 34. Be4 {[%clk 0:01:31.3]}
34... Qxf2 {[%clk 0:00:35.5]} 35. Qxb7# {[%clk 0:01:30.9]} 1-0

[Event "*** Titled Tuesday Blitz"]
[Site "Chess.com"]
[Date "2020.03.03"]
[Round "2"]
[White "sergiochess83"]
[Black "VeraNebolsina"]
[Result "1-0"]
[WhiteElo "2953"]
[BlackElo "2367"]
[TimeControl "180+1"]
[EndTime "13:18:14 PST"]
[Termination "sergiochess83 won by resignation"]

1. e4 {[%clk 0:03:00.9]} 1... c5 {[%clk 0:02:59.3]} 2. Nf3 {[%clk 0:02:51.8]}
2... Nc6 {[%clk 0:02:56.6]} 3. Bb5 {[%clk 0:02:47.4]} 3... g6 {[%clk 0:02:54.6]}
4. O-O {[%clk 0:02:46.2]} 4... Bg7 {[%clk 0:02:53.7]} 5. c3 {[%clk 0:02:46.9]}
5... Nf6 {[%clk 0:01:53.9]} 6. Re1 {[%clk 0:02:37.6]} 6... O-O {[%clk
0:01:49.3]} 7. d4 {[%clk 0:02:33.2]} 7... cxd4 {[%clk 0:01:43.3]} 8. cxd4 {[%clk
0:02:26.7]} 8... d5 {[%clk 0:01:42.6]} 9. e5 {[%clk 0:02:17.6]} 9... Ne4 {[%clk
0:01:39.6]} 10. Bxc6 {[%clk 0:02:17.3]} 10... bxc6 {[%clk 0:01:39.2]} 11. Be3
{[%clk 0:02:18.2]} 11... Bg4 {[%clk 0:01:36.4]} 12. h3 {[%clk 0:02:06.1]} 12...
Be6 {[%clk 0:01:05.7]} 13. Nbd2 {[%clk 0:02:03.9]} 13... Rb8 {[%clk 0:00:58.7]}
14. Qc1 {[%clk 0:01:57.7]} 14... Qb6 {[%clk 0:00:51.5]} 15. b3 {[%clk
0:01:49.1]} 15... f5 {[%clk 0:00:21]} 16. exf6 {[%clk 0:01:38.7]} 16... exf6
{[%clk 0:00:19.2]} 17. Nxe4 {[%clk 0:01:28.2]} 17... dxe4 {[%clk 0:00:18.9]} 18.
d5 {[%clk 0:01:28.7]} 18... Qc7 {[%clk 0:00:18.4]} 19. dxe6 {[%clk 0:01:25.3]}
19... exf3 {[%clk 0:00:18]} 20. Qc4 {[%clk 0:01:13.3]} 20... Qe7 {[%clk
0:00:16.9]} 21. Bc5 {[%clk 0:01:13]} 1-0

[Event "*** Titled Tuesday Blitz"]
[Site "Chess.com"]
[Date "2020.03.03"]
[Round "2"]
[White "Zubrrr"]
[Black "Firouzja2003"]
[Result "0-1"]
[WhiteElo "2658"]
[BlackElo "3062"]
[TimeControl "180+1"]
[EndTime "13:18:15 PST"]
[Termination "Firouzja2003 won on time"]

1. c4 {[%clk 0:03:00.9]} 1... Nf6 {[%clk 0:02:56.4]} 2. g3 {[%clk 0:03:01.2]}
2... h5 {[%clk 0:02:53.8]} 3. h3 {[%clk 0:03:00.8]} 3... d5 {[%clk 0:02:53.4]}
4. cxd5 {[%clk 0:03:00.4]} 4... Qxd5 {[%clk 0:02:52.7]} 5. Nf3 {[%clk
0:03:00.5]} 5... Nc6 {[%clk 0:02:51.7]} 6. Nc3 {[%clk 0:02:59.9]} 6... Qa5
{[%clk 0:02:50.7]} 7. Bg2 {[%clk 0:02:59.8]} 7... Bf5 {[%clk 0:02:49.5]} 8. d3
{[%clk 0:02:57.7]} 8... Rd8 {[%clk 0:02:44.2]} 9. Bd2 {[%clk 0:02:54.5]} 9...
Qb6 {[%clk 0:02:40.6]} 10. O-O {[%clk 0:02:40.1]} 10... e6 {[%clk 0:02:37.4]}
11. Na4 {[%clk 0:02:33.9]} 11... Qb5 {[%clk 0:02:35.3]} 12. Rc1 {[%clk
0:02:25.6]} 12... Be7 {[%clk 0:02:31.7]} 13. Nc3 {[%clk 0:02:12.3]} 13... Qa6
{[%clk 0:02:28.2]} 14. a3 {[%clk 0:02:01.9]} 14... O-O {[%clk 0:02:21.6]} 15.
Qb3 {[%clk 0:01:14.1]} 15... Nd5 {[%clk 0:02:06.1]} 16. Rfd1 {[%clk 0:00:33.5]}
16... Bg6 {[%clk 0:02:01.3]} 17. Ne4 {[%clk 0:00:32.4]} 17... Bxe4 {[%clk
0:01:50.1]} 18. dxe4 {[%clk 0:00:32.3]} 18... Nf6 {[%clk 0:01:51]} 19. Qe3
{[%clk 0:00:21.3]} 19... Qb6 {[%clk 0:01:48.1]} 20. Qxb6 {[%clk 0:00:18.8]}
20... axb6 {[%clk 0:01:49]} 21. e5 {[%clk 0:00:17.4]} 21... Ne4 {[%clk
0:01:48.7]} 22. Be3 {[%clk 0:00:14.4]} 22... Bc5 {[%clk 0:01:48.8]} 23. Bxc5
{[%clk 0:00:08.3]} 23... Nxc5 {[%clk 0:01:49.7]} 24. Kf1 {[%clk 0:00:02.5]}
24... Nb3 {[%clk 0:01:49]} 25. Rxd8 {[%clk 0:00:02.5]} 25... Rxd8 {[%clk
0:01:49]} 26. Rb1 {[%clk 0:00:02.8]} 26... Nxe5 {[%clk 0:01:47.8]} 27. Ke1
{[%clk 0:00:01.4]} 27... Nc4 {[%clk 0:01:45]} 28. Rc1 {[%clk 0:00:01.4]} 28...
Nxc1 {[%clk 0:01:44.9]} 0-1

[Event "*** Titled Tuesday Blitz"]
[Site "Chess.com"]
[Date "2020.03.03"]
[Round "2"]
[White "Konavets"]
[Black "DoHoChess"]
[Result "1-0"]
[WhiteElo "3026"]
[BlackElo "2651"]
[TimeControl "180+1"]
[EndTime "13:18:18 PST"]
[Termination "Konavets won by resignation"]

1. d4 {[%clk 0:02:57.3]} 1... d5 {[%clk 0:02:59.6]} 2. Nc3 {[%clk 0:02:56.7]}
2... Nf6 {[%clk 0:02:59]} 3. Bg5 {[%clk 0:02:56]} 3... c5 {[%clk 0:02:57.1]} 4.
dxc5 {[%clk 0:02:50.7]} 4... e6 {[%clk 0:02:56.4]} 5. Nf3 {[%clk 0:02:47.5]}
5... Bxc5 {[%clk 0:02:54.2]} 6. e3 {[%clk 0:02:47.9]} 6... O-O {[%clk
0:02:51.7]} 7. Bd3 {[%clk 0:02:45.5]} 7... h6 {[%clk 0:02:51.5]} 8. Bh4 {[%clk
0:02:45]} 8... Nc6 {[%clk 0:02:51.7]} 9. O-O {[%clk 0:02:45]} 9... Be7 {[%clk
0:02:51.6]} 10. Re1 {[%clk 0:02:40.1]} 10... e5 {[%clk 0:02:48.4]} 11. Bxf6
{[%clk 0:02:38.6]} 11... Bxf6 {[%clk 0:02:37.3]} 12. Nxd5 {[%clk 0:02:33.6]}
12... Be6 {[%clk 0:02:37.4]} 13. c4 {[%clk 0:02:32.6]} 13... Be7 {[%clk
0:02:26.3]} 14. a3 {[%clk 0:02:24]} 14... a5 {[%clk 0:02:25.7]} 15. Qb3 {[%clk
0:02:19.4]} 15... a4 {[%clk 0:02:11.7]} 16. Qxb7 {[%clk 0:02:17.4]} 16... Bxd5
{[%clk 0:02:11.6]} 17. cxd5 {[%clk 0:02:17]} 17... Na5 {[%clk 0:02:11.8]} 18.
Qb5 {[%clk 0:02:15.3]} 18... Nb3 {[%clk 0:02:11.9]} 19. Rad1 {[%clk 0:02:13.9]}
19... Bd6 {[%clk 0:01:54.2]} 20. Nd2 {[%clk 0:02:08.7]} 20... Nc5 {[%clk
0:01:50.5]} 21. Ne4 {[%clk 0:02:03.6]} 21... Rb8 {[%clk 0:01:41]} 22. Qc4 {[%clk
0:02:02.4]} 22... Nxe4 {[%clk 0:01:41.2]} 23. Qxe4 {[%clk 0:02:01.9]} 23... f5
{[%clk 0:01:17.5]} 24. Qxa4 {[%clk 0:02:00.9]} 24... Rxb2 {[%clk 0:01:02.8]} 25.
Re2 {[%clk 0:01:59.8]} 25... Rb6 {[%clk 0:00:54.7]} 26. Rc2 {[%clk 0:01:58.3]}
26... e4 {[%clk 0:00:52.9]} 27. Be2 {[%clk 0:01:58.4]} 27... Qa8 {[%clk
0:00:51.5]} 28. Qxa8 {[%clk 0:01:57.1]} 28... Rxa8 {[%clk 0:00:52.4]} 29. Rc6
{[%clk 0:01:57.8]} 29... Rab8 {[%clk 0:00:40.8]} 30. a4 {[%clk 0:01:56.3]} 30...
Bb4 {[%clk 0:00:38.6]} 31. Bb5 {[%clk 0:01:55.6]} 31... Kf7 {[%clk 0:00:38]} 32.
d6 {[%clk 0:01:53.3]} 32... Rxc6 {[%clk 0:00:37]} 33. Bxc6 {[%clk 0:01:54.2]}
33... Bxd6 {[%clk 0:00:37]} 34. a5 {[%clk 0:01:53.4]} 34... Bc5 {[%clk
0:00:27.5]} 35. a6 {[%clk 0:01:53.4]} 35... Rb2 {[%clk 0:00:27.5]} 36. g4 {[%clk
0:01:52.2]} 36... f4 {[%clk 0:00:27.1]} 37. a7 {[%clk 0:01:51.8]} 37... Bxa7
{[%clk 0:00:25.2]} 38. Rd7+ {[%clk 0:01:51.7]} 38... Kg6 {[%clk 0:00:22.5]} 39.
Rxa7 {[%clk 0:01:52.6]} 39... f3 {[%clk 0:00:20.4]} 40. Bxe4+ {[%clk 0:01:51.7]}
1-0

[Event "*** Titled Tuesday Blitz"]
[Site "Chess.com"]
[Date "2020.03.03"]
[Round "2"]
[White "GCamachoMartinez"]
[Black "newauto"]
[Result "1-0"]
[WhiteElo "2392"]
[BlackElo "2013"]
[TimeControl "180+1"]
[EndTime "13:18:20 PST"]
[Termination "GCamachoMartinez won by resignation"]

1. d4 {[%clk 0:03:00.9]} 1... d5 {[%clk 0:02:54.2]} 2. c4 {[%clk 0:03:00]} 2...
c6 {[%clk 0:02:53.7]} 3. cxd5 {[%clk 0:02:58.6]} 3... cxd5 {[%clk 0:02:53.2]} 4.
Bg5 {[%clk 0:02:59]} 4... Nc6 {[%clk 0:02:52.6]} 5. Nc3 {[%clk 0:02:56]} 5...
Bf5 {[%clk 0:02:51.3]} 6. Nf3 {[%clk 0:02:48.4]} 6... Nf6 {[%clk 0:02:49.8]} 7.
Bxf6 {[%clk 0:02:47.6]} 7... exf6 {[%clk 0:02:49.5]} 8. e3 {[%clk 0:02:43.6]}
8... Be7 {[%clk 0:02:43.8]} 9. Qb3 {[%clk 0:02:40.7]} 9... O-O {[%clk
0:02:40.3]} 10. Qxd5 {[%clk 0:02:31.6]} 10... Nb4 {[%clk 0:02:33]} 11. Qxf5
{[%clk 0:02:29.3]} 11... Re8 {[%clk 0:02:30]} 12. Be2 {[%clk 0:02:19.6]} 12...
g6 {[%clk 0:02:28.5]} 13. Qb1 {[%clk 0:02:18.6]} 13... f5 {[%clk 0:02:24.8]} 14.
O-O {[%clk 0:02:17.4]} 14... Rc8 {[%clk 0:02:09.9]} 15. a3 {[%clk 0:02:15.8]}
15... Nd5 {[%clk 0:02:10.3]} 16. Nxd5 {[%clk 0:02:13.5]} 16... Qxd5 {[%clk
0:02:11.2]} 17. Bd3 {[%clk 0:02:07.7]} 17... f4 {[%clk 0:02:10.6]} 18. e4 {[%clk
0:02:06.5]} 18... Qh5 {[%clk 0:02:11.5]} 19. Qa2 {[%clk 0:01:57.9]} 19... g5
{[%clk 0:02:10.3]} 20. Ne5 {[%clk 0:01:49.7]} 20... g4 {[%clk 0:02:08.7]} 21.
Be2 {[%clk 0:01:20.3]} 21... f3 {[%clk 0:02:05.3]} 22. gxf3 {[%clk 0:01:20.2]}
22... gxf3 {[%clk 0:02:04.2]} 23. Bxf3 {[%clk 0:01:19.9]} 23... Qh3 {[%clk
0:01:58.4]} 24. Qxf7+ {[%clk 0:01:17]} 24... Kh8 {[%clk 0:01:56.3]} 25. Qf5
{[%clk 0:00:50.2]} 25... Rg8+ {[%clk 0:01:39.7]} 26. Kh1 {[%clk 0:00:49.4]}
26... Qh4 {[%clk 0:01:40.5]} 27. Nf7+ {[%clk 0:00:48]} 27... Kg7 {[%clk
0:01:37.6]} 28. Rg1+ {[%clk 0:00:48.4]} 28... Kf8 {[%clk 0:01:27.6]} 29. Qxc8+
{[%clk 0:00:48]} 29... Kxf7 {[%clk 0:01:12.3]} 30. Qxg8+ {[%clk 0:00:46.8]}
30... Kf6 {[%clk 0:01:12.3]} 31. e5+ {[%clk 0:00:46.7]} 31... Kf5 {[%clk
0:01:11.6]} 32. Qg4+ {[%clk 0:00:45.8]} 1-0

[Event "*** Titled Tuesday Blitz"]
[Site "Chess.com"]
[Date "2020.03.03"]
[Round "2"]
[White "Atanejhad"]
[Black "IMTominho"]
[Result "0-1"]
[WhiteElo "2586"]
[BlackElo "2816"]
[TimeControl "180+1"]
[EndTime "13:18:22 PST"]
[Termination "IMTominho won on time"]

1. e4 {[%clk 0:03:00.9]} 1... c5 {[%clk 0:02:59.6]} 2. Nf3 {[%clk 0:03:00.8]}
2... e6 {[%clk 0:02:59.6]} 3. d4 {[%clk 0:02:52.9]} 3... cxd4 {[%clk 0:02:59.2]}
4. Nxd4 {[%clk 0:02:53.8]} 4... a6 {[%clk 0:02:57.8]} 5. c4 {[%clk 0:02:53.1]}
5... Nf6 {[%clk 0:02:55.8]} 6. Nc3 {[%clk 0:02:52.3]} 6... Qc7 {[%clk
0:02:55.7]} 7. a3 {[%clk 0:02:50.2]} 7... b6 {[%clk 0:02:53.3]} 8. Be3 {[%clk
0:02:42.6]} 8... Bb7 {[%clk 0:02:53.2]} 9. Bd3 {[%clk 0:02:42.1]} 9... Be7
{[%clk 0:02:45.1]} 10. O-O {[%clk 0:02:38.7]} 10... d6 {[%clk 0:02:43]} 11. Qe2
{[%clk 0:02:24.3]} 11... Nbd7 {[%clk 0:02:35.7]} 12. b4 {[%clk 0:02:18.9]} 12...
O-O {[%clk 0:02:31.8]} 13. Rfc1 {[%clk 0:02:18.3]} 13... Ne5 {[%clk 0:02:27]}
14. f3 {[%clk 0:02:12.2]} 14... Nfd7 {[%clk 0:02:25.5]} 15. Rab1 {[%clk
0:02:06.1]} 15... Nxd3 {[%clk 0:02:18.3]} 16. Qxd3 {[%clk 0:02:05.8]} 16... Ne5
{[%clk 0:02:18.4]} 17. Qe2 {[%clk 0:01:57.4]} 17... Nxc4 {[%clk 0:02:12.1]} 18.
Ncb5 {[%clk 0:01:40.2]} 18... axb5 {[%clk 0:02:11.9]} 19. Nxb5 {[%clk
0:01:41.1]} 19... Qd7 {[%clk 0:02:12.5]} 20. Qxc4 {[%clk 0:01:38]} 20... d5
{[%clk 0:02:13]} 21. Qe2 {[%clk 0:01:10.1]} 21... Rfc8 {[%clk 0:02:01.7]} 22.
Bxb6 {[%clk 0:01:02.3]} 22... dxe4 {[%clk 0:01:58.5]} 23. fxe4 {[%clk
0:00:59.5]} 23... Bc6 {[%clk 0:01:57.9]} 24. Nd4 {[%clk 0:00:49.4]} 24... Qb7
{[%clk 0:01:52.3]} 25. Bc5 {[%clk 0:00:41.9]} 25... Bxe4 {[%clk 0:01:51.7]} 26.
Ra1 {[%clk 0:00:25.6]} 26... Bf6 {[%clk 0:01:50.7]} 27. Qf2 {[%clk 0:00:19.9]}
27... Rd8 {[%clk 0:01:47]} 28. Rd1 {[%clk 0:00:17.5]} 28... Rd5 {[%clk
0:01:46.3]} 29. Rd2 {[%clk 0:00:09.5]} 29... Rad8 {[%clk 0:01:43.6]} 30. Rad1
{[%clk 0:00:09.9]} 30... Rg5 {[%clk 0:01:39.7]} 0-1